bitfinex/quotes_ETHUSD_20240719
["timestamp","ask_amount","ask_price","bid_price","bid_amount"]
[1721386344322,2.93511,3407.1,3406.0,2.93598]
[1721386345286,2.93493,3407.3,3406.1,2.9359]
[1721386345517,3.886974,3407.2,3406.1,3.85631994]
[1721386345685,2.93493,3407.3,3406.2,5.35231]
[1721386347049,2.93493,3407.3,3406.3,0.05870834]
[1721386347337,2.93493,3407.3,3406.2,5.35231]
[1721386347927,2.93496,3407.2,3406.2,2.4165]
[1721386348225,2.93505,3407.1,3406.2,2.4165]
[1721386348841,3.228411,3407.3,3406.2,2.4165]
[1721386349621,3.228411,3407.3,3406.3,2.4503]
[1721386349802,2.93493,3407.3,3406.3,2.4503]
[1721386350217,2.93496,3407.2,3406.3,2.4503]
[1721386350588,2.93481,3407.4,3406.3,2.4503]
[1721386351192,2.93481,3407.4,3406.3,5.38602]
[1721386351398,2.93481,3407.4,3406.4,5.42734]
[1721386351603,2.93481,3407.4,3406.5,0.542734]
[1721386352730,2.93488,3407.3,3406.5,0.542734]
[1721386352932,2.93488,3407.3,3406.4,2.4917]
[1721386354655,2.93481,3407.4,3406.4,2.4917]
[1721386354656,2.93529,3406.9,3406.4,2.4917]
[1721386356107,2.9351,3407.1,3406.4,2.4917]
[1721386356521,2.93514,3407.0,3406.4,2.4917]
[1721386358840,3.522164,3407.0,3406.4,2.4917]
[1721386360028,2.2911,3407.7,3406.4,2.4917]
[1721386360029,2.93502,3407.2,3406.4,2.4917]
[1721386360419,2.93505,3407.1,3406.4,2.4917]
[1721386362244,2.93513,3407.0,3406.4,2.4917]
[1721386362545,2.93505,3407.1,3406.4,2.4917]
[1721386362546,2.93528,3406.9,3406.4,2.4917]
[1721386364113,0.293505,3407.0,3406.4,2.4917]
[1721386364946,2.93528,3406.9,3406.4,2.4917]
[1721386371664,2.93539,3406.7,3406.4,2.4917]
[1721386371952,2.93547,3406.6,3406.4,2.4917]
[1721386372318,2.93625,3405.7,3405.5,7.33]
[1721386372581,2.4779,3406.4,3404.3,0.91537664]
[1721386372582,2.93599,3406.0,3404.9,2.3352]
[1721386372915,2.93675,3405.2,3404.9,2.3352]
[1721386373427,2.93685,3405.0,3404.0,2.3352]
[1721386373649,2.937,3404.9,3404.0,2.3352]
[1721386373849,2.937,3404.9,3404.1,0.23352]
[1721386375948,2.93682,3405.1,3404.1,0.23352]
[1721386376724,2.93686,3405.0,3404.1,0.23352]
[1721386378373,2.9367,3405.2,3404.1,0.23352]
[1721386378374,2.93695,3404.9,3404.1,0.23352]
[1721386378573,2.93695,3404.9,3404.2,0.256872]
[1721386380663,2.93695,3404.9,3404.0,2.3352]
[1721386380664,2.93705,3404.8,3404.0,2.3352]
[1721386381296,2.93695,3404.9,3404.0,2.3352]
[1721386381455,2.9372,3404.6,3404.0,2.3352]
[1721386382359,2.93729,3404.5,3404.0,2.3352]
[1721386382870,2.9372,3404.6,3404.0,2.3352]
[1721386383097,2.9372,3404.6,3404.0,2.56872]
[1721386385906,2.9372,3404.6,3403.6,2.3714]
[1721386387512,2.93704,3404.8,3403.6,5.30945]
[1721386387675,2.93712,3404.7,3403.8,2.3376]
[1721386388782,4.63634,3405.6,3403.8,5.27549]
[1721386388972,2.93666,3405.3,3404.2,2.3376]
[1721386389175,2.93666,3405.3,3404.3,0.527522]
[1721386389875,2.93668,3405.2,3404.3,0.527522]
[1721386390606,2.93656,3405.4,3404.3,0.527522]
[1721386391074,5.93663,3405.3,3404.3,0.527522]
[1721386391914,2.93669,3405.2,3404.3,0.527522]
[1721386392211,2.93687,3405.0,3404.3,0.527522]
[1721386392412,2.93687,3405.0,3404.2,2.3376]
[1721386392614,3.824062,3405.2,3404.2,2.3376]
[1721386392823,2.93673,3405.2,3404.2,2.3376]
[1721386393800,2.93673,3405.2,3404.2,5.27514]
[1721386395600,2.93673,3405.2,3404.2,2.3376]
[1721386395800,2.93673,3405.2,3404.3,0.527525]
[1721386396202,5.9366,3405.3,3404.3,0.527525]
[1721386396402,2.93642,3405.5,3404.4,2.3287]
[1721386396605,2.93651,3405.4,3404.4,2.3287]
[1721386396784,2.93651,3405.4,3404.4,5.26607]
[1721386396986,2.93626,3405.7,3404.5,3.5166295]
[1721386397211,2.93626,3405.7,3404.6,2.4449]
[1721386397523,2.93626,3405.7,3404.6,5.38207]
[1721386397705,2.93626,3405.7,3404.7,2.4449]
[1721386399238,2.93634,3405.6,3404.7,2.4449]
[1721386399409,2.93634,3405.6,3404.8,0.59614295]
[1721386400534,2.93645,3405.5,3404.8,0.59614295]
[1721386400743,2.93663,3405.3,3404.7,2.4449]
[1721386402002,2.93645,3405.5,3404.7,2.4449]
[1721386402228,2.93645,3405.5,3404.8,0.30242595]
[1721386402615,2.93628,3405.7,3404.8,0.30242595]
[1721386402847,2.93634,3405.6,3404.8,0.30242595]
[1721386406645,2.93643,3405.5,3404.8,0.30242595]
[1721386407008,3.49060028,3406.1,3404.7,2.4449]
[1721386407205,2.93678,3405.1,3404.7,2.4449]
[1721386408244,2.93678,3405.1,3404.0,2.3399]
[1721386408245,2.477,3405.1,3404.0,2.3399]
[1721386408846,2.937,3404.9,3404.0,2.3399]
[1721386409064,2.93717,3404.7,3404.0,2.3399]
[1721386409207,2.93729,3404.5,3404.0,2.3399]
[1721386409408,5.87435,3404.7,3404.0,2.3399]
[1721386409611,2.93717,3404.7,3404.0,2.3399]
[1721386409911,2.93749,3404.3,3404.0,2.3399]
[1721386411170,2.93734,3404.5,3404.0,2.3399]
[1721386412474,2.93737,3404.4,3404.0,2.3399]
[1721386413433,2.9373,3404.5,3404.0,2.3399]
[1721386414140,2.93725,3404.6,3404.0,2.3399]
[1721386414141,2.9374,3404.4,3404.0,2.3399]
[1721386415286,2.93781,3403.9,3403.4,2.3399]
[1721386416199,2.93792,3403.8,3403.4,2.3399]
[1721386416952,2.93807,3403.6,3403.4,2.3399]
[1721386417154,2.93792,3403.8,3403.4,2.3399]
[1721386417361,2.93775,3404.0,3403.4,2.57389]
[1721386420985,2.93756,3404.2,3403.4,2.57389]
[1721386421187,2.93763,3404.1,3403.4,2.57389]
[1721386423285,2.93777,3404.0,3403.4,2.3399]
[1721386425311,2.93797,3403.7,3402.8,2.54]
[1721386425500,2.93783,3403.9,3402.8,2.54]
[1721386425725,2.93783,3403.9,3402.9,2.3298]
[1721386425931,2.93783,3403.9,3403.0,0.23298]
[1721386426806,2.93783,3403.9,3403.1,2.2589]
[1721386427008,2.93789,3403.8,3403.1,2.2589]
[1721386427398,2.93781,3403.9,3403.1,2.2589]
[1721386428245,2.93789,3403.8,3403.1,2.2589]
[1721386428449,2.93789,3403.8,3403.2,0.249188]
[1721386433611,2.93798,3403.7,3403.2,0.249188]
[1721386434309,2.93798,3403.7,3403.1,2.2589]
[1721386434513,2.9382,3403.5,3403.1,2.2589]
[1721386435661,2.93832,3403.3,3403.1,2.2589]
[1721386435817,2.93832,3403.3,3402.3,2.93918]
[1721386436019,2.93832,3403.3,3402.1,2.54]
[1721386436020,2.93841,3403.2,3402.4,2.3481]
[1721386436256,2.93841,3403.2,3402.5,0.23481]
[1721386437359,2.93841,3403.2,3402.6,2.54]
[1721386437657,2.93841,3403.2,3402.5,0.23481]
[1721386438024,2.9383,3403.4,3402.5,0.23481]
[1721386438349,2.9383,3403.4,3402.6,2.3543]
[1721386438655,2.93833,3403.3,3402.7,0.258911]
[1721386440658,2.93841,3403.2,3402.7,0.258911]
[1721386440869,2.93841,3403.2,3402.6,2.3543]
[1721386441039,2.93818,3403.5,3402.6,2.3543]
[1721386441240,2.93833,3403.3,3402.6,2.3543]
[1721386442066,2.93818,3403.5,3402.6,2.3543]
[1721386442236,2.93818,3403.5,3402.8,2.3416]
[1721386442971,2.93784,3403.9,3402.8,2.3416]
[1721386443266,2.93784,3403.9,3402.9,2.4687]
[1721386443565,2.93766,3404.1,3403.1,2.4687]
[1721386443566,2.93778,3404.0,3403.1,2.4687]
[1721386443781,2.93777,3404.0,3403.2,0.540735]
[1721386444632,2.93781,3403.9,3403.2,0.540735]
[1721386444832,2.93766,3404.1,3403.1,2.4687]
[1721386445145,2.93772,3404.0,3403.1,2.4687]
[1721386446171,2.93788,3403.9,3403.1,2.4687]
[1721386446368,2.93788,3403.9,3403.1,5.0087]
[1721386446771,2.93788,3403.9,3403.1,2.4687]
[1721386447088,2.93815,3403.6,3403.1,2.4687]
[1721386447384,2.93815,3403.6,3403.1,5.0087]
[1721386447547,2.93815,3403.5,3403.1,2.4687]
[1721386448347,2.93823,3403.4,3403.1,2.4687]
[1721386448790,2.93823,3403.4,3402.8,2.3569]
[1721386448953,2.93823,3403.4,3402.8,2.6419621]
[1721386449271,2.93823,3403.4,3403.0,2.54]
[1721386449673,2.93823,3403.4,3402.8,2.3569]
[1721386450274,2.93832,3403.3,3402.8,2.3569]
[1721386450476,2.93832,3403.3,3403.0,2.54]
[1721386450774,2.93832,3403.3,3402.8,2.3569]
[1721386450983,2.93832,3403.3,3402.8,2.616071]
[1721386451507,2.93832,3403.3,3403.0,2.54]
[1721386451649,2.93832,3403.3,3402.8,2.616071]
[1721386451650,2.93821,3403.5,3402.8,2.616071]
[1721386452177,2.93792,3403.8,3403.0,2.4007]
[1721386452386,2.93792,3403.8,3403.4,2.54]
[1721386452549,4.16763774,3404.0,3403.0,2.4007]
[1721386452754,4.16763774,3404.0,3403.1,0.8138541]
[1721386452755,2.93772,3404.0,3403.1,0.8138541]
[1721386453267,2.93786,3403.9,3403.4,2.54]
[1721386453698,2.93786,3403.9,3403.1,0.8138541]
[1721386454001,2.93786,3403.9,3403.2,2.4007]
[1721386454380,2.93786,3403.9,3403.4,2.54]
[1721386454699,2.93786,3403.9,3403.2,2.4007]
[1721386454897,2.93786,3403.9,3403.3,0.32145541]
[1721386455256,2.93786,3403.9,3403.4,2.54]
[1721386455653,4.16760774,3404.1,3403.3,0.32145541]
[1721386456203,2.93772,3404.0,3403.3,0.32145541]
[1721386456360,2.93772,3404.0,3403.3,2.86145541]
[1721386456689,2.93772,3404.0,3403.4,0.60760095]
[1721386456893,2.93772,3404.0,3403.3,0.32145541]
[1721386457259,2.93772,3404.0,3403.3,2.86145541]
[1721386457452,4.16763774,3404.0,3403.3,2.86145541]
[1721386457656,4.16763774,3404.0,3403.3,0.32145541]
[1721386458302,4.16763774,3404.0,3403.3,2.86145541]
[1721386458658,2.9378,3403.9,3403.3,0.32145541]
[1721386459553,4.16771774,3403.9,3403.2,2.4007]
[1721386460391,2.93805,3403.7,3402.9,9.7779]
[1721386460732,2.93817,3403.5,3402.9,9.7779]
[1721386461432,2.93817,3403.5,3403.1,2.54]
[1721386461607,4.16796774,3403.7,3402.9,9.7779]
[1721386461933,2.93805,3403.7,3403.0,0.97779]
[1721386462292,2.93807,3403.6,3403.2,2.54]
[1721386462726,2.93807,3403.6,3403.0,0.97779]
[1721386463303,2.93807,3403.6,3403.2,2.54]
[1721386463742,2.93807,3403.6,3403.0,0.97779]
[1721386463926,2.93807,3403.6,3402.9,2.4479]
[1721386464317,2.93807,3403.6,3403.1,2.54]
[1721386464712,2.93807,3403.6,3402.9,2.4479]
[1721386465807,1.22991774,3403.7,3402.9,4.9879]
[1721386466007,2.9379,3403.8,3402.9,4.9879]
[1721386466008,4.16781774,3403.8,3402.9,4.9879]
[1721386466216,4.16781774,3403.8,3403.0,0.792663]
[1721386466422,4.16781774,3403.8,3403.3,2.54]
[1721386466645,1.22991774,3403.9,3403.0,0.792663]
[1721386466860,4.16771774,3403.9,3403.0,0.792663]
[1721386467062,4.16771774,3403.9,3403.1,0.9117953]
[1721386467410,4.16771774,3403.9,3403.4,2.54]
[1721386467726,4.16771774,3403.9,3403.1,0.9117953]
[1721386467920,1.22991774,3403.8,3403.1,0.9117953]
[1721386468323,1.22991774,3403.8,3403.3,2.54]
[1721386468750,4.16771774,3403.9,3403.1,0.9117953]
[1721386469249,1.22991774,3403.8,3403.1,0.9117953]
[1721386469448,1.22991774,3403.8,3403.3,2.54]
[1721386469639,1.22991774,3403.8,3403.1,0.9117953]
[1721386469837,1.22991774,3403.8,3403.2,0.62983553]
[1721386470046,1.22991774,3403.9,3403.2,0.62983553]
[1721386470246,4.47958593,3404.1,3403.2,0.62983553]
[1721386470247,1.22991774,3404.0,3403.3,2.365]
[1721386470552,1.22991774,3404.0,3403.4,2.54]
[1721386470767,1.22991774,3404.0,3403.3,2.365]
[1721386471264,4.16763774,3404.0,3403.3,2.365]
[1721386471567,4.16763774,3404.0,3403.4,2.54]
[1721386471743,4.16763774,3404.0,3403.3,2.365]
[1721386472326,4.16763774,3404.0,3403.4,2.54]
[1721386472727,4.16763774,3404.0,3403.3,2.365]
[1721386473471,1.22991774,3403.9,3403.3,4.905]
[1721386473674,4.16763774,3404.0,3403.3,2.365]
[1721386475461,4.16763774,3404.0,3403.3,4.905]
[1721386475637,4.16763774,3404.0,3403.3,2.365]
[1721386476376,4.16763774,3404.0,3403.4,2.54]
[1721386476875,4.16763774,3404.0,3403.3,2.365]
[1721386477443,4.16763774,3404.0,3403.4,2.54]
[1721386477640,4.16763774,3404.0,3403.3,2.365]
[1721386478161,1.22991774,3403.9,3403.3,2.365]
[1721386478479,1.22991774,3403.9,3403.3,4.905]
[1721386478684,1.22991774,3403.9,3403.3,2.365]
[1721386479177,4.16763774,3404.0,3403.3,2.365]
[1721386479488,1.22991774,3403.9,3403.3,4.905]
[1721386479641,1.22991774,3403.9,3403.3,2.365]
[1721386480139,4.16763774,3404.0,3403.3,2.365]
[1721386480339,4.16763774,3404.0,3403.4,2.54]
[1721386480784,1.22991774,3403.9,3403.3,2.365]
[1721386481084,1.22991774,3403.9,3403.4,0.59333155]
[1721386481254,4.16763774,3404.0,3403.4,0.59333155]
[1721386481578,1.22991774,3403.9,3403.4,3.13333155]
[1721386481757,1.22991774,3403.9,3403.4,0.59333155]
[1721386481961,4.16763774,3404.0,3403.3,2.365]
[1721386482159,1.22991774,3403.9,3403.3,2.365]
[1721386482372,2.93772,3404.0,3403.4,2.54]
[1721386482373,4.16763774,3404.0,3403.4,2.54]
[1721386482746,4.16763774,3404.0,3403.3,2.365]
[1721386483445,4.16763774,3404.0,3403.4,2.54]
[1721386483747,4.16763774,3404.0,3403.3,2.365]
[1721386484372,1.22991774,3403.9,3403.4,2.54]
[1721386484887,4.16763774,3404.0,3403.3,2.365]
[1721386485186,1.22991774,3403.9,3403.3,2.365]
[1721386485484,1.22991774,3403.9,3403.4,2.54]
[1721386485675,1.22991774,3403.9,3403.3,2.365]
[1721386486223,1.22991774,3403.9,3402.9,2.4386]
[1721386486411,4.16777774,3403.9,3403.2,2.54]
[1721386486612,4.16777774,3403.9,3403.0,1.07474058]
[1721386487123,1.22991774,3403.8,3403.0,1.07474058]
[1721386487338,1.22991774,3403.8,3403.2,5.47839]
[1721386487510,1.22991774,3403.9,3403.3,0.65531306]
[1721386487719,1.22991774,3404.0,3403.3,0.65531306]
[1721386488222,1.22991774,3403.9,3403.3,0.65531306]
[1721386488583,1.54239127,3404.1,3403.3,0.65531306]
[1721386488584,1.22991774,3404.0,3403.3,0.65531306]
[1721386488828,1.22991774,3404.0,3403.4,0.61337531]
[1721386490819,1.22991774,3404.0,3403.4,3.09987531]
[1721386491405,1.22991774,3404.0,3403.7,2.54]
[1721386491709,1.22991774,3404.0,3403.4,3.09987531]
[1721386492409,1.22991774,3404.0,3403.7,2.54]
[1721386492611,1.22991774,3404.0,3403.4,3.09987531]
[1721386493348,1.22991774,3404.0,3403.6,2.54]
[1721386493718,1.22991774,3404.0,3403.4,3.09987531]
[1721386493922,1.22991774,3404.0,3403.5,0.33100538]
[1721386494233,1.22991774,3404.0,3403.9,1.058]
[1721386494621,1.22991774,3404.0,3403.7,1.058]
[1721386494817,1.22991774,3404.0,3403.9,1.058]
[1721386495603,1.22991774,3404.0,3403.7,1.058]
[1721386495805,1.22991774,3404.0,3403.9,1.058]
[1721386496748,1.22991774,3404.0,3403.8,1.058]
[1721386496945,1.22991774,3403.9,3403.8,1.058]
[1721386497665,1.22991774,3403.9,3403.6,1.058]
[1721386497824,1.22991774,3403.9,3403.4,2.4865]
[1721386497825,1.22991774,3403.9,3403.8,1.0519]
[1721386498029,1.22631774,3403.9,3403.4,2.4865]
[1721386498240,1.22631774,3403.9,3403.8,1.058]
[1721386498535,1.54267247,3404.0,3403.8,1.058]
[1721386498735,1.54327811,3404.0,3403.6,1.058]
[1721386499325,1.54327811,3404.0,3403.9,1.058]
[1721386499548,2.61979862,3404.0,3403.9,1.058]
[1721386499737,2.61979862,3404.0,3403.6,1.058]
[1721386500064,2.47031829,3404.0,3403.6,1.058]
[1721386500425,2.47031829,3404.0,3403.9,1.058]
[1721386500627,2.61979864,3404.0,3403.6,1.058]
[1721386500865,1.54327811,3404.0,3403.6,1.058]
[1721386501024,2.93763,3404.1,3403.6,1.058]
[1721386501230,1.69274891,3404.0,3403.6,1.058]
[1721386501467,4.48100857,3404.0,3403.9,1.058]
[1721386501761,4.63048893,3404.0,3403.6,1.058]
[1721386501968,4.48100857,3404.0,3403.6,1.058]
[1721386502438,4.48100857,3404.0,3403.9,1.058]
[1721386502631,4.63048893,3404.0,3403.4,1.058]
[1721386502826,4.48100857,3404.0,3403.6,1.058]
[1721386503027,2.3006,3403.9,3403.6,1.058]
[1721386503277,3.84386857,3403.9,3403.6,1.058]
[1721386503784,2.93791,3403.8,3403.3,1.058]
[1721386504142,2.93791,3403.8,3403.5,1.058]
[1721386504344,2.93791,3403.8,3403.7,1.058]
[1721386504734,2.93791,3403.8,3403.6,1.058]
[1721386505033,1.54329967,3403.9,3403.6,3.4249]
[1721386505243,5.87519,3404.2,3403.8,1.058]
[1721386505244,1.54329967,3404.0,3403.8,1.058]
[1721386505449,1.54329967,3404.0,3403.6,2.3669]
[1721386505450,1.54329967,3404.0,3403.9,1.058]
[1721386505643,1.69277984,3404.0,3403.7,1.058]
[1721386505852,1.54329967,3404.0,3403.9,1.058]
[1721386506056,1.69277953,3404.0,3403.9,1.058]
[1721386506682,1.69277953,3404.0,3403.6,3.4249]
[1721386506971,1.23460927,3403.9,3403.8,1.058]
[1721386507751,1.23460927,3403.9,3403.6,1.058]
[1721386507952,1.23468802,3403.8,3403.6,1.058]
[1721386508156,1.23468802,3403.8,3403.7,1.058]
[1721386509645,1.23468802,3403.8,3403.5,1.058]
[1721386509853,1.23468802,3403.8,3403.7,1.058]
[1721386510278,1.23468802,3403.9,3403.8,2.3265]
[1721386510588,1.54345582,3404.3,3403.8,2.66495]
[1721386510734,1.23468802,3404.4,3404.2,1.058]
[1721386511177,1.23468802,3404.5,3404.2,1.058]
[1721386511379,1.23468802,3404.6,3404.4,1.058]
[1721386511561,1.23468802,3404.5,3404.4,1.058]
[1721386511751,1.23468802,3404.6,3404.4,1.058]
[1721386511938,1.23468802,3404.5,3403.8,2.66495]
[1721386512135,1.23468802,3404.5,3404.4,1.058]
[1721386512339,1.23468802,3404.6,3404.4,1.058]
[1721386512573,1.23468802,3404.6,3404.5,1.058]
[1721386512777,1.23468802,3404.7,3404.5,1.058]
[1721386513081,1.54345582,3404.8,3404.6,1.058]
[1721386513082,1.23468802,3404.8,3404.6,1.058]
[1721386513375,1.54345582,3404.9,3404.6,1.058]
[1721386513376,1.23468802,3404.9,3404.6,1.058]
[1721386513592,1.23468802,3404.9,3404.8,1.058]
[1721386514137,1.23468802,3405.0,3404.8,1.058]
[1721386514342,1.23468802,3405.0,3404.9,1.058]
[1721386514541,3.80192159,3405.2,3404.9,1.058]
[1721386514542,1.23468802,3405.2,3404.9,1.058]
[1721386514742,1.23468802,3405.4,3405.1,1.058]
[1721386514978,1.23468802,3405.6,3405.3,1.058]
[1721386515183,1.23468802,3405.6,3405.5,1.058]
[1721386515184,1.09089496,3405.6,3405.5,1.058]
[1721386515746,1.09089496,3405.6,3405.3,1.058]
[1721386516266,1.09089496,3405.6,3404.7,2.537]
[1721386516896,4.02723496,3405.6,3404.7,2.537]
[1721386517113,2.32558298,3405.6,3404.7,2.537]
[1721386517313,5.93626,3405.7,3404.7,2.537]
[1721386517314,0.98007164,3405.5,3404.7,2.537]
[1721386517891,3.91657164,3405.5,3404.7,2.537]
[1721386518903,0.98007164,3405.5,3404.7,2.537]
[1721386519085,2.93644,3405.5,3404.7,2.537]
[1721386520371,2.9363,3405.7,3404.7,2.537]
[1721386520577,2.9363,3405.7,3404.8,2.2846]
[1721386521922,5.19644,3405.9,3405.1,2.537]
[1721386523019,2.93619,3405.8,3405.1,2.537]
[1721386528640,2.93619,3405.8,3405.1,3.02503309]
[1721386529162,5.352,3406.3,3405.1,3.02503309]
[1721386529163,2.93584,3406.2,3405.5,2.537]
[1721386530643,5.87136,3406.4,3405.5,2.537]
[1721386530966,2.93565,3406.4,3405.6,2.3758]
[1721386531140,2.9355,3406.6,3405.9,2.537]
[1721386532243,2.93534,3406.8,3405.9,2.537]
[1721386532446,2.93515,3407.0,3406.0,2.2708]
[1721386532741,2.93515,3407.0,3406.0,2.800708]
[1721386532941,2.93497,3407.2,3406.3,2.537]
[1721386535060,2.93505,3407.1,3406.3,2.537]
[1721386535655,2.2587,3407.5,3406.3,2.537]
[1721386535859,2.93537,3406.8,3406.3,2.537]
[1721386536855,2.9354,3406.7,3406.3,2.537]
[1721386541156,2.93549,3406.6,3406.0,2.2708]
[1721386546584,2.93557,3406.5,3406.0,2.2708]
[1721386547973,2.93545,3406.7,3406.0,2.2708]
[1721386548176,2.93545,3406.7,3406.6,1.056]
[1721386550071,2.93545,3406.7,3406.1,2.535]
[1721386551992,2.93517,3407.0,3406.1,2.535]
[1721386552199,2.93517,3407.0,3406.2,2.457]
[1721386552693,2.93522,3406.9,3406.2,2.457]
[1721386553406,2.93531,3406.8,3406.2,2.457]
[1721386553759,2.93506,3407.1,3406.2,2.457]
[1721386554013,2.93496,3407.2,3406.2,2.457]
[1721386554164,2.93534,3406.8,3406.2,2.457]
[1721386554504,2.93528,3406.9,3406.2,2.457]
[1721386555375,2.93545,3406.7,3406.2,2.457]
[1721386557700,2.93548,3406.6,3406.2,2.457]
[1721386557889,2.93545,3406.7,3406.2,2.457]
[1721386558088,2.93554,3406.6,3406.2,2.457]
[1721386559516,3.522626,3406.6,3406.1,2.535]
[1721386559667,3.522626,3406.6,3405.9,2.25]
[1721386560283,2.93554,3406.6,3405.9,2.25]
[1721386560880,2.93557,3406.5,3405.9,2.25]
[1721386561585,2.93545,3406.7,3405.9,2.25]
[1721386562588,2.93556,3406.5,3405.9,2.25]
[1721386563883,3.310189,3407.1,3405.9,2.25]
[1721386563884,2.93544,3406.7,3405.9,2.25]
[1721386564097,2.93544,3406.7,3405.9,3.755133]
[1721386565490,2.93522,3406.9,3406.2,2.535]
[1721386565707,2.93522,3406.9,3406.3,2.3135]
[1721386567219,2.93531,3406.8,3406.3,2.3135]
[1721386568306,2.93522,3406.9,3406.3,2.3135]
[1721386569087,5.87052,3406.9,3406.3,2.3135]
[1721386569332,2.93522,3406.9,3406.3,2.3135]
[1721386570098,2.93522,3406.9,3406.8,1.056]
[1721386570296,3.7326277,3406.9,3406.8,1.056]
[1721386570701,2.93553,3406.6,3406.0,2.3415]
[1721386571018,2.93553,3406.6,3406.4,1.056]
[1721386572238,2.93539,3406.7,3406.4,1.056]
[1721386572385,2.93539,3406.7,3406.6,1.056]
[1721386577415,4.17007802,3406.7,3406.6,1.056]
[1721386578090,1.23468802,3406.7,3406.6,1.056]
[1721386578290,1.23468802,3406.8,3406.6,1.056]
[1721386578539,1.23468802,3406.8,3406.7,1.056]
[1721386580960,4.47732467,3406.9,3406.7,1.056]
[1721386581367,2.93514,3407.0,3406.7,1.056]
[1721386581368,1.54219,3406.8,3406.7,1.056]
[1721386581524,1.233696,3406.8,3406.7,1.056]
[1721386582969,4.47741,3406.9,3406.7,1.056]
[1721386583182,4.47741,3406.9,3406.1,2.2584]
[1721386583183,2.93549,3406.6,3406.1,2.2584]
[1721386583330,4.16921102,3406.6,3406.5,1.056]
[1721386583528,1.23372102,3406.7,3406.5,1.056]
[1721386585264,4.16908102,3406.8,3406.5,1.056]
[1721386585469,4.16908102,3406.8,3406.7,1.056]
[1721386586029,2.93536,3406.8,3406.7,1.056]
[1721386586267,4.47749029,3406.8,3406.7,1.056]
[1721386586480,2.93549,3406.6,3406.5,1.056]
[1721386586631,2.93556,3406.5,3406.3,1.056]
[1721386586954,4.16934136,3406.5,3406.3,1.056]
[1721386587161,1.23378136,3406.5,3406.3,1.056]
[1721386588441,4.16927136,3406.6,3406.3,1.056]
[1721386588661,4.16927136,3406.6,3406.1,2.2584]
[1721386588662,2.93549,3406.6,3406.5,1.056]
[1721386589168,4.47767733,3406.6,3406.5,1.056]
[1721386589367,2.93549,3406.6,3406.5,1.056]
[1721386591540,4.47766487,3406.6,3406.5,1.056]
[1721386591737,2.93549,3406.6,3406.5,1.056]
[1721386592876,2.93586,3406.2,3405.6,7.94025109]
[1721386593047,4.1697574,3406.2,3406.1,1.056]
[1721386593241,2.93586,3406.2,3406.1,1.056]
[1721386593568,4.1697574,3406.2,3406.1,1.056]
[1721386594773,2.93586,3406.2,3406.1,1.056]
[1721386595184,4.1697574,3406.2,3406.1,1.056]
[1721386595355,2.93586,3406.2,3406.1,1.056]
[1721386597207,4.1697574,3406.2,3406.1,1.056]
[1721386597482,2.93586,3406.2,3406.1,1.056]
[1721386599945,4.1697574,3406.2,3406.1,1.056]
[1721386600379,2.93586,3406.2,3406.1,1.056]
[1721386604064,2.9359,3406.1,3405.9,1.056]
[1721386604268,2.9359,3406.1,3405.7,1.056]
[1721386604269,2.93613,3405.9,3405.7,1.056]
[1721386604468,2.93613,3405.9,3405.5,1.056]
[1721386604984,2.93634,3405.6,3405.5,1.056]
[1721386608492,2.93623,3405.8,3405.5,1.056]
[1721386608795,2.93606,3406.0,3405.7,1.056]
[1721386608978,2.93589,3406.2,3405.9,1.056]
[1721386609183,2.93591,3406.1,3406.0,1.056]
[1721386610006,2.93577,3406.3,3406.0,1.056]
[1721386610212,2.93565,3406.4,3406.2,1.056]
[1721386612065,2.93611,3405.9,3405.1,9.7032]
[1721386612279,2.9363,3405.7,3405.4,1.056]
[1721386613278,2.9363,3405.7,3405.6,1.056]
[1721386613804,2.93618,3405.8,3405.4,1.056]
[1721386614006,2.93618,3405.8,3405.6,1.056]
[1721386614725,2.93618,3405.8,3405.4,1.056]
[1721386615299,2.93618,3405.8,3405.1,9.7032]
[1721386615469,2.93618,3405.8,3405.7,1.056]
[1721386615835,2.93618,3405.8,3405.1,10.67352]
[1721386615836,2.93618,3405.8,3405.5,1.056]
[1721386616364,2.93618,3405.8,3405.7,1.056]
[1721386616800,2.93618,3405.8,3405.5,1.056]
[1721386617404,2.93618,3405.8,3405.1,9.7032]
[1721386617405,2.93618,3405.8,3405.7,1.056]
[1721386617614,2.93618,3405.8,3405.5,1.056]
[1721386618436,2.93618,3405.8,3405.7,1.056]
[1721386618728,2.93618,3405.8,3405.5,1.056]
[1721386619283,2.93618,3405.8,3405.7,1.056]
[1721386619717,2.93618,3405.8,3405.4,1.056]
[1721386619918,1.2338974,3406.2,3405.6,1.056]
[1721386620121,1.2338974,3406.2,3405.9,1.056]
[1721386620122,2.93588,3406.2,3405.9,1.056]
[1721386620287,2.93567,3406.4,3406.1,1.056]
[1721386622631,2.93567,3406.4,3405.9,1.056]
[1721386622807,3.80006371,3406.4,3405.9,1.056]
[1721386623016,2.2599,3406.3,3405.7,1.056]
[1721386623183,2.93583,3406.2,3405.7,1.056]
[1721386623636,2.93598,3406.1,3405.7,1.056]
[1721386625012,2.936,3406.0,3405.7,1.056]
[1721386628226,2.93608,3405.9,3405.7,1.056]
[1721386628511,2.936,3406.0,3405.7,1.056]
[1721386628512,2.93616,3405.8,3405.7,1.056]
[1721386628729,2.93616,3405.8,3405.5,1.056]